[Event "*** Titled Tuesday Blitz"]
[Site "Chess.com"]
[Date "2021.03.16"]
[Round "3"]
[White "mjray79"]
[Black "MarcoRiehle"]
[Result "1-0"]
[WhiteElo "2469"]
[BlackElo "2677"]
[TimeControl "180+1"]
[EndTime "10:30:00 PDT"]
[Termination "mjray79 won by checkmate"]

1. d4 {[%clk 0:03:00.9]} 1... d5 {[%clk 0:02:59.5]} 2. c4 {[%clk 0:03:00.8]}
2... e6 {[%clk 0:02:59.9]} 3. Nf3 {[%clk 0:03:00.5]} 3... Nf6 {[%clk 0:02:59.2]}
4. g3 {[%clk 0:03:00.8]} 4... dxc4 {[%clk 0:02:59.2]} 5. Bg2 {[%clk 0:03:01.2]}
5... Bb4+ {[%clk 0:02:59.6]} 6. Bd2 {[%clk 0:03:00.8]} 6... a5 {[%clk 0:03:00]}
7. O-O {[%clk 0:02:58.4]} 7... O-O {[%clk 0:02:59.8]} 8. Qc2 {[%clk 0:02:56.6]}
8... b5 {[%clk 0:02:59.4]} 9. a4 {[%clk 0:02:56.1]} 9... Bxd2 {[%clk 0:02:53.1]}
10. Nbxd2 {[%clk 0:02:57]} 10... c6 {[%clk 0:02:52.6]} 11. b3 {[%clk 0:02:55]}
11... cxb3 {[%clk 0:02:50.5]} 12. Nxb3 {[%clk 0:02:55.9]} 12... Nd5 {[%clk
0:02:47.4]} 13. Ne5 {[%clk 0:02:50.5]} 13... Bb7 {[%clk 0:02:38.5]} 14. Nc5
{[%clk 0:02:48.3]} 14... Ra7 {[%clk 0:02:28.4]} 15. Rfc1 {[%clk 0:02:41.7]}
15... Qd6 {[%clk 0:02:17.9]} 16. Nxb7 {[%clk 0:01:40.7]} 16... Rxb7 {[%clk
0:02:18.8]} 17. Nxc6 {[%clk 0:01:40.6]} 17... Nxc6 {[%clk 0:02:08.6]} 18. Qxc6
{[%clk 0:01:41.5]} 18... Qxc6 {[%clk 0:01:55.7]} 19. Rxc6 {[%clk 0:01:42.4]}
19... b4 {[%clk 0:01:52.7]} 20. Rc5 {[%clk 0:01:42.4]} 20... b3 {[%clk
0:01:50.8]} 21. Bxd5 {[%clk 0:01:30.6]} 21... exd5 {[%clk 0:01:50.2]} 22. Rxa5
{[%clk 0:01:30.4]} 22... Rc8 {[%clk 0:01:34.7]} 23. Kg2 {[%clk 0:01:28.2]} 23...
Kf8 {[%clk 0:01:31.9]} 24. Rb1 {[%clk 0:01:19.2]} 24... Rc4 {[%clk 0:01:26.3]}
25. Rb5 {[%clk 0:01:12.6]} 25... Rxb5 {[%clk 0:01:25.6]} 26. axb5 {[%clk
0:01:13.5]} 26... Rb4 {[%clk 0:01:26.1]} 27. Kf3 {[%clk 0:01:12]} 27... Rxb5
{[%clk 0:01:21]} 28. Ke3 {[%clk 0:01:11.7]} 28... Rb4 {[%clk 0:00:55]} 29. Kd3
{[%clk 0:01:09.6]} 29... Ke7 {[%clk 0:00:54.4]} 30. e3 {[%clk 0:01:07.5]} 30...
Ra4 {[%clk 0:00:40]} 31. Kc3 {[%clk 0:00:46.2]} 31... Ra2 {[%clk 0:00:37.6]} 32.
Rb2 {[%clk 0:00:46.3]} 32... Ra1 {[%clk 0:00:34.9]} 33. Rxb3 {[%clk 0:00:44.4]}
33... g5 {[%clk 0:00:31.1]} 34. h4 {[%clk 0:00:34.5]} 34... gxh4 {[%clk
0:00:29.5]} 35. gxh4 {[%clk 0:00:35.4]} 35... Rh1 {[%clk 0:00:29]} 36. Rb5
{[%clk 0:00:35.4]} 36... Ke6 {[%clk 0:00:28.8]} 37. Rb6+ {[%clk 0:00:34.7]}
37... Kf5 {[%clk 0:00:28.5]} 38. Rh6 {[%clk 0:00:33.3]} 38... Rf1 {[%clk
0:00:25.7]} 39. Rxh7 {[%clk 0:00:32]} 39... f6 {[%clk 0:00:26.3]} 40. f4 {[%clk
0:00:22]} 40... Ke4 {[%clk 0:00:25.2]} 41. Re7+ {[%clk 0:00:22.1]} 41... Kf3
{[%clk 0:00:25.5]} 42. Re6 {[%clk 0:00:21.8]} 42... Rh1 {[%clk 0:00:22.6]} 43.
Kd3 {[%clk 0:00:21.2]} 43... Rd1+ {[%clk 0:00:22.2]} 44. Kc2 {[%clk 0:00:21.3]}
44... Rh1 {[%clk 0:00:22.3]} 45. Kd2 {[%clk 0:00:21]} 45... Rh2+ {[%clk
0:00:08.1]} 46. Kd3 {[%clk 0:00:20.9]} 46... Re2 {[%clk 0:00:08.6]} 47. h5
{[%clk 0:00:18.8]} 47... Rh2 {[%clk 0:00:08.6]} 48. Rxf6 {[%clk 0:00:18.5]}
48... Rxh5 {[%clk 0:00:09]} 49. Re6 {[%clk 0:00:18.7]} 49... Kg4 {[%clk
0:00:07]} 50. Re5 {[%clk 0:00:18.4]} 50... Rh1 {[%clk 0:00:07.4]} 51. Rxd5
{[%clk 0:00:18.5]} 51... Kf3 {[%clk 0:00:08]} 52. Re5 {[%clk 0:00:16.9]} 52...
Rd1+ {[%clk 0:00:08.3]} 53. Kc4 {[%clk 0:00:17.2]} 53... Kg4 {[%clk 0:00:08.2]}
54. Kd5 {[%clk 0:00:17.6]} 54... Ra1 {[%clk 0:00:05.9]} 55. Ke4 {[%clk
0:00:16.9]} 55... Ra4 {[%clk 0:00:06]} 56. Rg5+ {[%clk 0:00:16.8]} 56... Kh4
{[%clk 0:00:06.4]} 57. Kf3 {[%clk 0:00:16.4]} 57... Ra1 {[%clk 0:00:05.5]} 58.
d5 {[%clk 0:00:16.1]} 58... Rf1+ {[%clk 0:00:05.5]} 59. Ke4 {[%clk 0:00:16.4]}
59... Rd1 {[%clk 0:00:04.7]} 60. Ke5 {[%clk 0:00:12.3]} 60... Rd3 {[%clk
0:00:04.8]} 61. e4 {[%clk 0:00:12.4]} 61... Rd2 {[%clk 0:00:05.4]} 62. d6 {[%clk
0:00:12.4]} 62... Rd3 {[%clk 0:00:05.9]} 63. Rg7 {[%clk 0:00:11.8]} 63... Kh5
{[%clk 0:00:05.3]} 64. d7 {[%clk 0:00:11.9]} 64... Kh6 {[%clk 0:00:06.2]} 65.
Re7 {[%clk 0:00:12.1]} 65... Kg6 {[%clk 0:00:06.3]} 66. f5+ {[%clk 0:00:11.3]}
66... Kg5 {[%clk 0:00:06.7]} 67. Ke6 {[%clk 0:00:11.5]} 67... Rd4 {[%clk
0:00:06.1]} 68. Re8 {[%clk 0:00:10.8]} 68... Rxe4+ {[%clk 0:00:05.6]} 69. Kd5
{[%clk 0:00:10.4]} 69... Rf4 {[%clk 0:00:03.5]} 70. d8=Q+ {[%clk 0:00:09.9]}
70... Kg4 {[%clk 0:00:04]} 71. f6 {[%clk 0:00:08.8]} 71... Rf5+ {[%clk
0:00:03.1]} 72. Ke6 {[%clk 0:00:08.8]} 72... Rf1 {[%clk 0:00:04]} 73. Kf7 {[%clk
0:00:08.8]} 73... Kg5 {[%clk 0:00:03.4]} 74. Rg8+ {[%clk 0:00:09.7]} 74... Kf5
{[%clk 0:00:03]} 75. Qd5+ {[%clk 0:00:09.4]} 75... Kf4 {[%clk 0:00:03]} 76. Qc4+
{[%clk 0:00:10]} 76... Ke5 {[%clk 0:00:02.1]} 77. Qxf1 {[%clk 0:00:10.9]} 77...
Kd4 {[%clk 0:00:03]} 78. Kg7 {[%clk 0:00:11]} 78... Ke5 {[%clk 0:00:03.9]} 79.
f7 {[%clk 0:00:11.9]} 79... Kd5 {[%clk 0:00:04.8]} 80. f8=Q {[%clk 0:00:12.4]}
80... Ke5 {[%clk 0:00:05.7]} 81. Q8f5+ {[%clk 0:00:12.4]} 81... Kd6 {[%clk
0:00:05.5]} 82. Rd8+ {[%clk 0:00:12.5]} 82... Ke7 {[%clk 0:00:05.2]} 83. Qd7#
{[%clk 0:00:12.2]} 1-0

[Event "*** Titled Tuesday Blitz"]
[Site "Chess.com"]
[Date "2021.03.16"]
[Round "3"]
[White "frequentblunders"]
[Black "AsaHoffmann"]
[Result "1/2-1/2"]
[WhiteElo "2065"]
[BlackElo "2349"]
[TimeControl "180+1"]
[EndTime "10:30:11 PDT"]
[Termination "Game drawn - insufficient material"]

1. e3 {[%clk 0:02:58.3]} 1... d6 {[%clk 0:02:55.2]} 2. c4 {[%clk 0:02:59.2]}
2... e5 {[%clk 0:02:52.2]} 3. Nc3 {[%clk 0:03:00.1]} 3... Nf6 {[%clk 0:02:51.1]}
4. Nf3 {[%clk 0:03:01]} 4... e4 {[%clk 0:02:49.6]} 5. Nd4 {[%clk 0:03:01.4]}
5... c5 {[%clk 0:02:49]} 6. Nc2 {[%clk 0:03:01.4]} 6... Nc6 {[%clk 0:02:48.2]}
7. g3 {[%clk 0:03:01.4]} 7... Be7 {[%clk 0:02:47.1]} 8. Bg2 {[%clk 0:03:01.6]}
8... Bg4 {[%clk 0:02:46.4]} 9. f3 {[%clk 0:03:00.8]} 9... exf3 {[%clk
0:02:44.4]} 10. Bxf3 {[%clk 0:03:01.7]} 10... Bxf3 {[%clk 0:02:43.1]} 11. Qxf3
{[%clk 0:03:02.6]} 11... Ne5 {[%clk 0:02:43]} 12. Qe2 {[%clk 0:03:01.6]} 12...
Qd7 {[%clk 0:02:42.1]} 13. d4 {[%clk 0:03:00.6]} 13... Nc6 {[%clk 0:02:36.1]}
14. O-O {[%clk 0:02:59.9]} 14... O-O {[%clk 0:02:35.5]} 15. d5 {[%clk
0:02:56.8]} 15... Ne5 {[%clk 0:02:33.7]} 16. e4 {[%clk 0:02:55.4]} 16... a6
{[%clk 0:02:31.4]} 17. Bf4 {[%clk 0:02:54.7]} 17... Ng6 {[%clk 0:02:29.3]} 18.
Ne3 {[%clk 0:02:53.6]} 18... b5 {[%clk 0:02:26.4]} 19. Nf5 {[%clk 0:02:48.8]}
19... Rfe8 {[%clk 0:02:22.6]} 20. cxb5 {[%clk 0:02:41.7]} 20... axb5 {[%clk
0:02:20.8]} 21. Qxb5 {[%clk 0:02:40.4]} 21... Qxb5 {[%clk 0:02:17.3]} 22. Nxb5
{[%clk 0:02:41.3]} 22... Nxe4 {[%clk 0:02:11.8]} 23. Nc7 {[%clk 0:02:28.8]}
23... Nxf4 {[%clk 0:02:02.6]} 24. Nxe7+ {[%clk 0:02:10.3]} 24... Rxe7 {[%clk
0:02:01.5]} 25. Nxa8 {[%clk 0:02:10.3]} 25... Ne2+ {[%clk 0:01:56]} 26. Kg2
{[%clk 0:02:07.8]} 26... Nd4 {[%clk 0:01:55.6]} 27. Rae1 {[%clk 0:02:00.4]}
27... f5 {[%clk 0:01:54.7]} 28. Nb6 {[%clk 0:01:58.2]} 28... g6 {[%clk
0:01:44.7]} 29. Nc4 {[%clk 0:01:55.7]} 29... Ra7 {[%clk 0:01:42.6]} 30. a3
{[%clk 0:01:53.9]} 30... Ra4 {[%clk 0:01:37.5]} 31. Rc1 {[%clk 0:01:45.7]} 31...
Kg7 {[%clk 0:01:22.6]} 32. Rfe1 {[%clk 0:01:37.4]} 32... Ra6 {[%clk 0:01:18.8]}
33. h4 {[%clk 0:01:33.5]} 33... Kf6 {[%clk 0:01:17.7]} 34. g4 {[%clk 0:01:31.6]}
34... Ra4 {[%clk 0:01:03.2]} 35. gxf5 {[%clk 0:01:30.7]} 35... gxf5 {[%clk
0:01:02.7]} 36. Re3 {[%clk 0:01:25.9]} 36... Ra7 {[%clk 0:01:02]} 37. b3 {[%clk
0:01:23.7]} 37... Rg7+ {[%clk 0:01:00.3]} 38. Kh2 {[%clk 0:01:21.7]} 38... Rg4
{[%clk 0:00:59.1]} 39. Rxe4 {[%clk 0:01:14.9]} 39... fxe4 {[%clk 0:00:56.9]} 40.
Nxd6 {[%clk 0:01:15.3]} 40... Ke5 {[%clk 0:00:52.7]} 41. Kh3 {[%clk 0:01:12.2]}
41... Rf4 {[%clk 0:00:49.3]} 42. Nc4+ {[%clk 0:01:03.6]} 42... Kxd5 {[%clk
0:00:49.2]} 43. Ne3+ {[%clk 0:01:04.1]} 43... Kd6 {[%clk 0:00:48.6]} 44. Nc4+
{[%clk 0:01:03.3]} 44... Kc6 {[%clk 0:00:47.8]} 45. Ne5+ {[%clk 0:01:02.4]}
45... Kd5 {[%clk 0:00:47.8]} 46. Nd7 {[%clk 0:01:00]} 46... Rf3+ {[%clk
0:00:45.7]} 47. Kg4 {[%clk 0:01:00]} 47... Ne6 {[%clk 0:00:44.2]} 48. h5 {[%clk
0:00:55.9]} 48... Rxb3 {[%clk 0:00:43.1]} 49. a4 {[%clk 0:00:55]} 49... Ra3
{[%clk 0:00:42.5]} 50. Nf6+ {[%clk 0:00:49.8]} 50... Ke5 {[%clk 0:00:41.7]} 51.
Nxh7 {[%clk 0:00:50.7]} 51... e3 {[%clk 0:00:41.3]} 52. h6 {[%clk 0:00:49.6]}
52... Rxa4+ {[%clk 0:00:41.1]} 53. Kf3 {[%clk 0:00:49.5]} 53... Ra3 {[%clk
0:00:40.2]} 54. Re1 {[%clk 0:00:49.6]} 54... Nd4+ {[%clk 0:00:39.8]} 55. Kg3
{[%clk 0:00:49.1]} 55... Nf5+ {[%clk 0:00:39.5]} 56. Kf3 {[%clk 0:00:48.7]}
56... c4 {[%clk 0:00:39.5]} 57. Ng5 {[%clk 0:00:46.5]} 57... Nxh6 {[%clk
0:00:35.2]} 58. Rxe3+ {[%clk 0:00:46.7]} 58... Kd4 {[%clk 0:00:34.3]} 59. Rxa3
{[%clk 0:00:46.3]} 59... Nf5 {[%clk 0:00:32.4]} 60. Ne4 {[%clk 0:00:46]} 60...
Ne7 {[%clk 0:00:29.9]} 61. Nf2 {[%clk 0:00:44.7]} 61... Nd5 {[%clk 0:00:29.5]}
62. Nd1 {[%clk 0:00:44.7]} 62... c3 {[%clk 0:00:28.6]} 63. Nxc3 {[%clk
0:00:43.6]} 63... Nxc3 {[%clk 0:00:28.3]} 64. Ra8 {[%clk 0:00:44.5]} 64... Nd5
{[%clk 0:00:27.7]} 65. Rd8 {[%clk 0:00:44.6]} 65... Ke5 {[%clk 0:00:27.1]} 66.
Kg4 {[%clk 0:00:44.2]} 66... Ke4 {[%clk 0:00:26.5]} 67. Re8+ {[%clk 0:00:44.2]}
67... Kd4 {[%clk 0:00:26.2]} 68. Kf3 {[%clk 0:00:44.1]} 68... Kc5 {[%clk
0:00:25]} 69. Rd8 {[%clk 0:00:44.1]} 69... Kc6 {[%clk 0:00:24.1]} 70. Ke4 {[%clk
0:00:44.3]} 70... Nf6+ {[%clk 0:00:23.3]} 71. Ke5 {[%clk 0:00:43.6]} 71... Nd7+
{[%clk 0:00:23.2]} 72. Ke6 {[%clk 0:00:42.8]} 72... Nc5+ {[%clk 0:00:23.2]} 73.
Ke5 {[%clk 0:00:42.3]} 73... Nd7+ {[%clk 0:00:22.9]} 74. Kd4 {[%clk 0:00:40]}
74... Nb6 {[%clk 0:00:21.9]} 75. Re8 {[%clk 0:00:37.6]} 75... Kd6 {[%clk
0:00:20.5]} 76. Rh8 {[%clk 0:00:35.8]} 76... Kc6 {[%clk 0:00:19.9]} 77. Rh6+
{[%clk 0:00:36.3]} 77... Kb5 {[%clk 0:00:19.9]} 78. Rg6 {[%clk 0:00:36.2]} 78...
Na4 {[%clk 0:00:19]} 79. Kd5 {[%clk 0:00:34.5]} 79... Nb6+ {[%clk 0:00:18.7]}
80. Kd4 {[%clk 0:00:34.8]} 80... Na4 {[%clk 0:00:18.5]} 81. Rg1 {[%clk
0:00:35.4]} 81... Kc6 {[%clk 0:00:17.6]} 82. Rc1+ {[%clk 0:00:32.2]} 82... Kb7
{[%clk 0:00:16.4]} 83. Rb1+ {[%clk 0:00:30.4]} 83... Kc6 {[%clk 0:00:16.2]} 84.
Kc4 {[%clk 0:00:30.5]} 84... Nb6+ {[%clk 0:00:16.1]} 85. Kd4 {[%clk 0:00:30.4]}
85... Nd7 {[%clk 0:00:16.1]} 86. Rh1 {[%clk 0:00:28.9]} 86... Kd6 {[%clk
0:00:14.7]} 87. Rh6+ {[%clk 0:00:29.1]} 87... Ke7 {[%clk 0:00:14.5]} 88. Kd5
{[%clk 0:00:29.1]} 88... Nf6+ {[%clk 0:00:14.5]} 89. Ke5 {[%clk 0:00:28.5]}
89... Nd7+ {[%clk 0:00:14.4]} 90. Kd5 {[%clk 0:00:28]} 90... Nf6+ {[%clk
0:00:14.4]} 91. Kc6 {[%clk 0:00:28.3]} 91... Kf7 {[%clk 0:00:13.5]} 92. Rh2
{[%clk 0:00:27.8]} 92... Ke6 {[%clk 0:00:13.2]} 93. Re2+ {[%clk 0:00:27.7]}
93... Kf5 {[%clk 0:00:13.4]} 94. Kd6 {[%clk 0:00:27.8]} 94... Ne4+ {[%clk
0:00:12.9]} 95. Kd5 {[%clk 0:00:27]} 95... Nc3+ {[%clk 0:00:12.8]} 96. Kc4
{[%clk 0:00:26.2]} 96... Nxe2 {[%clk 0:00:12.7]} 1/2-1/2

[Event "*** Titled Tuesday Blitz"]
[Site "Chess.com"]
[Date "2021.03.16"]
[Round "3"]
[White "Msb2"]
[Black "Margency"]
[Result "1/2-1/2"]
[WhiteElo "2912"]
[BlackElo "2719"]
[TimeControl "180+1"]
[EndTime "10:30:36 PDT"]
[Termination "Game drawn - insufficient material"]

1. d4 {[%clk 0:03:00.9]} 1... d5 {[%clk 0:03:00.2]} 2. Nf3 {[%clk 0:03:00.2]}
2... e6 {[%clk 0:03:00.7]} 3. e3 {[%clk 0:03:00.3]} 3... c5 {[%clk 0:03:00.9]}
4. b3 {[%clk 0:03:00.2]} 4... Nf6 {[%clk 0:03:01.2]} 5. Bd3 {[%clk 0:03:00.5]}
5... b6 {[%clk 0:02:58.1]} 6. O-O {[%clk 0:03:00.1]} 6... Bb7 {[%clk 0:02:58.2]}
7. Bb2 {[%clk 0:02:59.4]} 7... Nbd7 {[%clk 0:02:57.6]} 8. Nbd2 {[%clk
0:02:56.5]} 8... Bd6 {[%clk 0:02:56.9]} 9. Qe2 {[%clk 0:02:55.4]} 9... O-O
{[%clk 0:02:45.4]} 10. Rad1 {[%clk 0:02:53]} 10... Qc7 {[%clk 0:02:37.9]} 11.
dxc5 {[%clk 0:02:39.7]} 11... Nxc5 {[%clk 0:02:29.5]} 12. c4 {[%clk 0:01:52.9]}
12... Nxd3 {[%clk 0:02:20]} 13. Qxd3 {[%clk 0:01:53.8]} 13... dxc4 {[%clk
0:02:18.1]} 14. Nxc4 {[%clk 0:01:53.7]} 14... Be7 {[%clk 0:02:18.7]} 15. Be5
{[%clk 0:01:27.1]} 15... Qc6 {[%clk 0:02:14.2]} 16. Qd4 {[%clk 0:01:25.9]} 16...
Qe4 {[%clk 0:02:08.4]} 17. Bd6 {[%clk 0:01:16.9]} 17... Bxd6 {[%clk 0:01:53.3]}
18. Nxd6 {[%clk 0:01:11.9]} 18... Qxd4 {[%clk 0:01:53.2]} 19. Nxd4 {[%clk
0:01:12.8]} 19... Bd5 {[%clk 0:01:47]} 20. Rc1 {[%clk 0:01:12]} 20... Rfd8
{[%clk 0:01:41.3]} 21. N6b5 {[%clk 0:01:10.6]} 21... a5 {[%clk 0:01:08.6]} 22.
Nc6 {[%clk 0:01:06.3]} 22... Bxc6 {[%clk 0:00:59.1]} 23. Rxc6 {[%clk 0:01:07.2]}
23... Rd2 {[%clk 0:00:59.2]} 24. a4 {[%clk 0:01:00.5]} 24... Rb2 {[%clk
0:00:50.4]} 25. Rfc1 {[%clk 0:00:41.1]} 25... g5 {[%clk 0:00:47.2]} 26. Rxb6
{[%clk 0:00:38.2]} 26... Rxb3 {[%clk 0:00:38]} 27. Rb7 {[%clk 0:00:37.7]} 27...
Rb2 {[%clk 0:00:29.9]} 28. h3 {[%clk 0:00:32.7]} 28... Nd5 {[%clk 0:00:29.1]}
29. Rd7 {[%clk 0:00:29.5]} 29... Ra2 {[%clk 0:00:22.4]} 30. Nd6 {[%clk
0:00:29.5]} 30... Rf8 {[%clk 0:00:19.6]} 31. Rc4 {[%clk 0:00:19.9]} 31... Nb6
{[%clk 0:00:17.6]} 32. Rdc7 {[%clk 0:00:11.8]} 32... Nxc4 {[%clk 0:00:17.4]} 33.
Rxc4 {[%clk 0:00:12.7]} 33... Rd8 {[%clk 0:00:17.4]} 34. Ne4 {[%clk 0:00:12.7]}
34... h6 {[%clk 0:00:16.8]} 35. g4 {[%clk 0:00:12]} 35... Rd1+ {[%clk
0:00:16.6]} 36. Kg2 {[%clk 0:00:12.5]} 36... Rda1 {[%clk 0:00:17.2]} 37. Nf6+
{[%clk 0:00:08.4]} 37... Kg7 {[%clk 0:00:17.2]} 38. Nh5+ {[%clk 0:00:08.4]}
38... Kf8 {[%clk 0:00:17.2]} 39. Rc8+ {[%clk 0:00:07.8]} 39... Ke7 {[%clk
0:00:17.6]} 40. Rc7+ {[%clk 0:00:08.7]} 40... Kd6 {[%clk 0:00:16.8]} 41. Rxf7
{[%clk 0:00:08.9]} 41... Rxa4 {[%clk 0:00:17.4]} 42. Rh7 {[%clk 0:00:07.9]}
42... Rb4 {[%clk 0:00:17.5]} 43. Rxh6 {[%clk 0:00:08.4]} 43... a4 {[%clk
0:00:18]} 44. Ng7 {[%clk 0:00:09]} 44... a3 {[%clk 0:00:16.5]} 45. Rxe6+ {[%clk
0:00:09.6]} 45... Kd7 {[%clk 0:00:16.5]} 46. Ra6 {[%clk 0:00:10.5]} 46... a2
{[%clk 0:00:16.2]} 47. Nf5 {[%clk 0:00:10.3]} 47... Rb2 {[%clk 0:00:16.1]} 48.
Ra7+ {[%clk 0:00:08.6]} 48... Kc8 {[%clk 0:00:14.2]} 49. Nd6+ {[%clk 0:00:04.5]}
49... Kb8 {[%clk 0:00:14]} 50. Ra4 {[%clk 0:00:05.4]} 50... Rd1 {[%clk 0:00:14]}
51. Rxa2 {[%clk 0:00:05.4]} 51... Rxa2 {[%clk 0:00:14.3]} 52. Ne4 {[%clk
0:00:06.3]} 52... Re1 {[%clk 0:00:13]} 53. Nxg5 {[%clk 0:00:06.6]} 53... Rxe3
{[%clk 0:00:13.4]} 54. h4 {[%clk 0:00:07.5]} 54... Ree2 {[%clk 0:00:13.5]} 55.
Nh3 {[%clk 0:00:07.4]} 55... Kc7 {[%clk 0:00:13.8]} 56. h5 {[%clk 0:00:07.9]}
56... Kd6 {[%clk 0:00:14.4]} 57. h6 {[%clk 0:00:08.5]} 57... Ke6 {[%clk
0:00:14.5]} 58. h7 {[%clk 0:00:09]} 58... Ra8 {[%clk 0:00:14.1]} 59. Nf4+ {[%clk
0:00:09.4]} 59... Kf6 {[%clk 0:00:13.7]} 60. Nxe2 {[%clk 0:00:10.3]} 60... Kg5
{[%clk 0:00:13.9]} 61. Kg3 {[%clk 0:00:10.6]} 61... Rh8 {[%clk 0:00:11.8]} 62.
f4+ {[%clk 0:00:11.2]} 62... Kg6 {[%clk 0:00:12.3]} 63. f5+ {[%clk 0:00:11]}
63... Kg5 {[%clk 0:00:12.6]} 64. Nf4 {[%clk 0:00:11.5]} 64... Rxh7 {[%clk
0:00:13.2]} 65. Nh3+ {[%clk 0:00:12]} 65... Kf6 {[%clk 0:00:12.7]} 66. Ng1
{[%clk 0:00:12.6]} 66... Ra7 {[%clk 0:00:12.7]} 67. Nf3 {[%clk 0:00:11.2]} 67...
Ra3 {[%clk 0:00:12.7]} 68. Kg2 {[%clk 0:00:08.5]} 68... Ra4 {[%clk 0:00:12]} 69.
Kg3 {[%clk 0:00:08.7]} 69... Ra3 {[%clk 0:00:12.4]} 70. Kf2 {[%clk 0:00:07.5]}
70... Rb3 {[%clk 0:00:12.1]} 71. Nd4 {[%clk 0:00:06.2]} 71... Ra3 {[%clk
0:00:10]} 72. Ne2 {[%clk 0:00:04.7]} 72... Kg5 {[%clk 0:00:09.9]} 73. Nd4 {[%clk
0:00:02.5]} 73... Kxg4 {[%clk 0:00:08.4]} 74. f6 {[%clk 0:00:03.1]} 74... Ra6
{[%clk 0:00:07.5]} 75. Ke3 {[%clk 0:00:02.8]} 75... Rxf6 {[%clk 0:00:07.6]} 76.
Ke4 {[%clk 0:00:03.7]} 76... Rf4+ {[%clk 0:00:07.8]} 77. Ke5 {[%clk 0:00:04.6]}
77... Rf1 {[%clk 0:00:07.9]} 78. Kd5 {[%clk 0:00:05.1]} 78... Rd1 {[%clk
0:00:08]} 79. Ke4 {[%clk 0:00:05.4]} 79... Re1+ {[%clk 0:00:07.9]} 80. Kd5
{[%clk 0:00:05.7]} 80... Kf4 {[%clk 0:00:08.4]} 81. Ne6+ {[%clk 0:00:05.9]}
81... Kf5 {[%clk 0:00:08.3]} 82. Nd4+ {[%clk 0:00:05.6]} 82... Kf6 {[%clk
0:00:08.9]} 83. Nc6 {[%clk 0:00:06.1]} 83... Rd1+ {[%clk 0:00:09]} 84. Kc5
{[%clk 0:00:06.7]} 84... Ke6 {[%clk 0:00:08]} 85. Nd4+ {[%clk 0:00:07.1]} 85...
Ke7 {[%clk 0:00:08.9]} 86. Nc6+ {[%clk 0:00:07.5]} 86... Ke6 {[%clk 0:00:08.4]}
87. Nd4+ {[%clk 0:00:07.5]} 87... Kd7 {[%clk 0:00:09.3]} 88. Nf3 {[%clk
0:00:07.1]} 88... Rc1+ {[%clk 0:00:10.2]} 89. Kd4 {[%clk 0:00:07.2]} 89... Rf1
{[%clk 0:00:10.5]} 90. Ne5+ {[%clk 0:00:07.4]} 90... Ke6 {[%clk 0:00:10.4]} 91.
Nc4 {[%clk 0:00:08.3]} 91... Rf4+ {[%clk 0:00:10.9]} 92. Kc5 {[%clk 0:00:08.9]}
92... Rh4 {[%clk 0:00:11.7]} 93. Nb6 {[%clk 0:00:08.7]} 93... Ke5 {[%clk
0:00:12.6]} 94. Nd7+ {[%clk 0:00:08.9]} 94... Ke6 {[%clk 0:00:13.5]} 95. Nb6
{[%clk 0:00:09.8]} 95... Rh5+ {[%clk 0:00:14.4]} 96. Kc6 {[%clk 0:00:09.7]}
96... Rh6 {[%clk 0:00:14.3]} 97. Kc5 {[%clk 0:00:10.1]} 97... Ke5 {[%clk
0:00:14.7]} 98. Nc4+ {[%clk 0:00:10.6]} 98... Ke4 {[%clk 0:00:14.6]} 99. Nd6+
{[%clk 0:00:11.1]} 99... Ke5 {[%clk 0:00:14.5]} 100. Nf7+ {[%clk 0:00:11.2]}
100... Kf6 {[%clk 0:00:14.5]} 101. Nxh6 {[%clk 0:00:12.1]} 1/2-1/2